bitfinex-derivatives/quotes_BTCF0:USTF0_20250830
["timestamp","ask_amount","ask_price","bid_price","bid_amount"]
[1756537964040,1.75054818,108330.0,108320.0,0.02595]
[1756537964441,1.75054818,108330.0,108320.0,0.001]
[1756537964630,2.35621561,108330.0,108320.0,0.001]
[1756537964838,2.35621561,108330.0,108300.0,1.24584]
[1756537965036,2.35621561,108330.0,108300.0,0.91039]
[1756537965037,0.42013743,108310.0,108300.0,0.91039]
[1756537965339,0.93404075,108310.0,108300.0,0.06315]
[1756537965641,0.02273075,108310.0,108300.0,1.03001743]
[1756537965842,0.02313075,108310.0,108300.0,1.38568486]
[1756537966143,0.0004,108310.0,108300.0,2.23452486]
[1756537966341,0.91131,108320.0,108310.0,0.06315]
[1756537966542,0.93478248,108320.0,108310.0,0.77961743]
[1756537969942,0.93478248,108320.0,108310.0,0.42395]
[1756537970143,0.93478248,108320.0,108310.0,0.77961743]
[1756537971448,0.93478248,108320.0,108310.0,0.42395]
[1756537971646,0.93478248,108320.0,108310.0,0.77961743]
[1756537975948,0.08794248,108320.0,108310.0,0.77961743]
[1756537976148,0.93470248,108320.0,108310.0,0.77961743]
[1756537977152,0.93470248,108320.0,108310.0,0.42395]
[1756537977352,0.93470248,108320.0,108310.0,0.77961743]
[1756537979254,0.93470248,108320.0,108310.0,0.42395]
[1756537979457,0.93470248,108320.0,108310.0,0.77961743]
[1756537980757,0.93466248,108320.0,108310.0,0.42395]
[1756537980956,0.93466248,108320.0,108310.0,0.77961743]
[1756537981356,0.93466248,108320.0,108310.0,0.42395]
[1756537981557,0.93466248,108320.0,108310.0,0.77961743]
[1756537982158,0.74752004,108320.0,108310.0,0.77961743]
[1756537982462,0.00352,108320.0,108310.0,0.77961743]
[1756537983461,0.00352,108320.0,108310.0,0.42395]
[1756537983661,0.00352,108320.0,108310.0,0.7796187]
[1756537984162,0.00572,108320.0,108310.0,0.7796187]
[1756537984560,0.3613887,108320.0,108310.0,0.7796187]
[1756537985163,0.00572,108320.0,108310.0,0.7796187]
[1756537985458,0.8524,108330.0,108320.0,0.06353]
[1756537985659,0.8524,108330.0,108320.0,0.77997574]
[1756537986056,0.8528,108330.0,108320.0,0.77997574]
[1756537988965,0.8524,108330.0,108320.0,0.77997574]
[1756537989164,0.8528,108330.0,108320.0,0.77997574]
[1756537993766,0.00612,108330.0,108320.0,0.77997574]
[1756537993965,0.85268,108330.0,108320.0,0.77997574]
[1756537994165,0.87532527,108330.0,108320.0,0.77997574]
[1756537995165,0.87528527,108330.0,108320.0,0.77997574]
[1756537995468,0.87528527,108330.0,108320.0,0.42433]
[1756537995666,0.87528527,108330.0,108320.0,0.77997574]
[1756537997465,0.02876527,108330.0,108320.0,0.77997574]
[1756537997665,0.87524527,108330.0,108320.0,0.77997574]
[1756537999167,0.87524527,108330.0,108320.0,0.06353]
[1756537999374,1.23089101,108330.0,108320.0,0.06353]
[1756538002363,0.87524527,108330.0,108320.0,0.06353]
[1756538002562,1.23089101,108330.0,108320.0,0.42433]
[1756538002961,1.23089101,108330.0,108320.0,0.06353]
[1756538003164,1.33089101,108330.0,108320.0,0.06353]
[1756538003769,0.97524527,108330.0,108320.0,0.06353]
[1756538003975,1.33089101,108330.0,108320.0,0.06353]
[1756538007278,1.33090064,108330.0,108320.0,0.41918537]
[1756538008580,0.87524527,108330.0,108320.0,0.41918537]
[1756538008879,1.23090064,108330.0,108320.0,0.42118537]
[1756538009280,1.23090064,108330.0,108320.0,0.42218537]
[1756538009680,1.23090064,108330.0,108320.0,0.78298537]
[1756538009982,1.23090064,108330.0,108320.0,0.42218537]
[1756538011482,1.23090064,108330.0,108320.0,0.78298537]
[1756538012179,0.87524527,108330.0,108320.0,0.78298537]
[1756538012379,1.23090064,108330.0,108320.0,0.78298537]
[1756538013985,1.23090064,108330.0,108320.0,1.13864074]
[1756538014288,0.87524527,108330.0,108320.0,1.13864074]
[1756538014585,1.23090064,108330.0,108320.0,0.78298537]
[1756538016387,0.38442064,108330.0,108320.0,1.13864074]
[1756538016685,1.22490064,108330.0,108320.0,1.13864074]
[1756538016887,0.86924527,108330.0,108320.0,1.13864074]
[1756538017184,0.87169527,108330.0,108320.0,1.13864074]
[1756538017679,0.02304527,108330.0,108320.0,2.23480074]
[1756538018484,0.02264527,108330.0,108320.0,2.23480074]
[1756538018684,0.02304527,108330.0,108320.0,2.23480074]
[1756538018885,0.02264527,108330.0,108320.0,2.23480074]
[1756538019480,0.02264527,108330.0,108320.0,2.59045611]
[1756538019682,0.02304527,108330.0,108320.0,2.59045611]
[1756538019977,0.02304527,108330.0,108320.0,2.23480074]
[1756538019978,0.02264527,108330.0,108320.0,2.23480074]
[1756538020181,0.02304527,108330.0,108320.0,2.23480074]
[1756538020581,0.02304527,108330.0,108320.0,2.59045611]
[1756538020984,0.0004,108330.0,108320.0,2.59045611]
[1756538022785,0.11661737,108350.0,108320.0,2.55216611]
[1756538022988,0.14392813,108350.0,108340.0,1.13596074]
[1756538024880,0.14592813,108350.0,108340.0,1.13596074]
[1756538025592,0.14492813,108350.0,108340.0,1.13596074]
[1756538025992,0.14392813,108350.0,108340.0,1.13596074]
[1756538027194,0.14312813,108350.0,108340.0,1.13596074]
[1756538027595,0.14352813,108350.0,108340.0,1.13596074]
[1756538029296,0.14352813,108350.0,108340.0,1.98184074]
[1756538029698,0.14352813,108350.0,108340.0,1.13596074]
[1756538035296,0.14352813,108350.0,108340.0,0.42465]
[1756538035502,0.50432813,108350.0,108340.0,0.06385]
[1756538035694,0.14352813,108350.0,108340.0,0.41950537]
[1756538035895,0.4991835,108350.0,108340.0,0.41950537]
[1756538036396,0.4991835,108350.0,108340.0,0.06385]
[1756538036603,0.4991835,108350.0,108340.0,0.41950537]
[1756538041406,0.4991835,108350.0,108340.0,0.78030537]
[1756538041809,0.4991835,108350.0,108340.0,1.13596074]
[1756538044009,0.4991835,108350.0,108340.0,0.42465]
[1756538044206,0.4991835,108350.0,108340.0,1.13596074]
[1756538047111,0.14352813,108350.0,108340.0,1.13596074]
[1756538047409,0.4991835,108350.0,108340.0,1.13596074]
[1756538050511,0.14352813,108350.0,108340.0,1.13596074]
[1756538050709,0.4967335,108350.0,108340.0,1.13596074]
[1756538050908,0.4978335,108350.0,108340.0,1.13596074]
[1756538052412,0.14107813,108350.0,108340.0,1.13596074]
[1756538052613,0.13715813,108350.0,108340.0,1.13596074]
[1756538057713,0.13675813,108350.0,108340.0,1.13596074]
[1756538057914,0.13715813,108350.0,108340.0,1.13596074]
[1756538065720,0.13675813,108350.0,108340.0,1.13596074]
[1756538066018,0.13715813,108350.0,108340.0,1.13596074]
[1756538067816,0.13675813,108350.0,108340.0,1.13596074]
[1756538068020,0.13715813,108350.0,108340.0,1.13596074]
[1756538069420,0.13715813,108350.0,108340.0,1.38596074]
[1756538083221,0.35595537,108360.0,108340.0,1.38596074]
[1756538083420,0.45040106,108360.0,108350.0,1.59951537]
[1756538084025,0.09474569,108360.0,108350.0,1.59951537]
[1756538084229,0.45040106,108360.0,108350.0,1.61831108]
[1756538084431,0.09474569,108360.0,108350.0,1.61831108]
[1756538085334,0.12228804,108360.0,108350.0,1.97396645]
[1756538085532,0.02368186,108360.0,108350.0,1.97396645]
[1756538086033,0.02508186,108360.0,108350.0,1.61831108]
[1756538087632,0.38073723,108360.0,108350.0,0.44098571]
[1756538087831,0.55277136,108360.0,108350.0,1.64164108]
[1756538088737,0.45277136,108360.0,108350.0,1.64164108]
[1756538089630,0.48156706,108360.0,108350.0,1.64164108]
[1756538090336,0.4588852,108360.0,108350.0,1.64164108]
[1756538091737,0.4588852,108360.0,108350.0,1.28598571]
[1756538091926,0.4588852,108360.0,108350.0,1.64164108]
[1756538094829,0.10322983,108360.0,108350.0,1.64164108]
[1756538095033,0.4588852,108360.0,108350.0,1.64164108]
[1756538095538,0.48133538,108360.0,108350.0,1.64164108]
[1756538097142,0.58133538,108360.0,108350.0,1.28598571]
[1756538097439,0.22568001,108360.0,108350.0,1.64164108]
[1756538097639,0.58133538,108360.0,108350.0,1.64164108]
[1756538098645,0.22568001,108360.0,108350.0,1.64164108]
[1756538098941,0.48133538,108360.0,108350.0,1.64164108]
[1756538100343,0.12568001,108360.0,108350.0,1.64164108]
[1756538100543,0.48133538,108360.0,108350.0,1.64164108]
[1756538103039,0.4588852,108360.0,108350.0,1.64164108]
[1756538103244,0.4816179,108360.0,108350.0,1.64164108]
[1756538107149,0.4816179,108360.0,108350.0,1.28598571]
[1756538107348,0.4816179,108360.0,108350.0,1.64164108]
[1756538107947,0.12596253,108360.0,108350.0,1.64164108]
[1756538108149,0.4816179,108360.0,108350.0,1.64164108]
[1756538111745,0.4816179,108360.0,108350.0,0.79664108]
[1756538113666,0.12596253,108360.0,108350.0,0.79664108]
[1756538115060,0.12496253,108360.0,108350.0,0.79664108]
[1756538115655,0.12396253,108360.0,108350.0,0.79664108]
[1756538116154,0.12396253,108360.0,108350.0,1.15229645]
[1756538117851,0.12396253,108360.0,108350.0,0.44098571]
[1756538118055,0.12396253,108360.0,108350.0,1.15229645]
[1756538120760,0.12396253,108360.0,108350.0,0.79664108]
[1756538125471,0.12396253,108360.0,108350.0,0.44098571]
[1756538125673,0.12396253,108360.0,108350.0,0.79664108]
[1756538132583,0.12396253,108360.0,108350.0,0.44098571]
[1756538132778,0.4796179,108360.0,108350.0,0.79664108]
[1756538132980,0.12396253,108360.0,108350.0,0.79664108]
[1756538133483,0.4796179,108360.0,108350.0,0.79664108]
[1756538133682,0.12396253,108360.0,108350.0,0.79664108]
[1756538135984,0.4796179,108360.0,108350.0,0.79664108]
[1756538136182,0.4796179,108360.0,108350.0,0.44098571]
[1756538136384,0.4796179,108360.0,108350.0,0.79664108]
[1756538138386,0.4796179,108360.0,108350.0,0.77784537]
[1756538138588,0.93527327,108360.0,108350.0,0.43605196]
[1756538139188,1.18527327,108360.0,108350.0,0.43605196]
[1756538139486,0.8296179,108360.0,108350.0,0.43605196]
[1756538139888,0.7296179,108360.0,108350.0,0.43605196]
[1756538140392,0.7296179,108360.0,108350.0,0.08039659]
[1756538140584,0.8296179,108360.0,108350.0,0.43605196]
[1756538141388,0.8292179,108360.0,108350.0,0.43605196]
[1756538142684,0.8292179,108360.0,108350.0,0.08039659]
[1756538142895,2.02895327,108360.0,108350.0,0.04241659]
[1756538143397,2.02895327,108360.0,108350.0,0.07878659]
[1756538144390,2.38975327,108360.0,108350.0,0.01900659]
[1756538144590,2.38975327,108360.0,108340.0,0.06751]
[1756538144891,0.81645537,108350.0,108340.0,0.06751]
[1756538145097,0.83918807,108350.0,108340.0,0.03114]
[1756538145798,0.4835327,108350.0,108340.0,0.07051]
[1756538146096,0.83918807,108350.0,108340.0,0.07051]
[1756538146494,0.83918807,108350.0,108340.0,0.06951]
[1756538147599,0.83918807,108350.0,108340.0,0.06751]
[1756538148999,1.08918807,108350.0,108340.0,0.00849]
[1756538149398,0.7335327,108350.0,108340.0,0.03114]
[1756538149593,1.08918807,108350.0,108340.0,0.03114]
[1756538149794,1.44484344,108350.0,108340.0,0.00849]
[1756538149993,0.14462,108340.0,108330.0,0.02265]
[1756538150196,2.08350344,108340.0,108330.0,0.37830537]
[1756538151304,1.3721927,108340.0,108330.0,0.37930537]
[1756538151505,2.08350344,108340.0,108330.0,0.37930537]
[1756538151807,2.08450344,108340.0,108330.0,0.37930537]
[1756538151995,2.08550344,108340.0,108330.0,0.37830537]
[1756538153006,2.08550344,108340.0,108330.0,0.41467537]
[1756538153906,2.08550344,108340.0,108330.0,0.37830537]
[1756538154805,2.08550344,108340.0,108330.0,0.41467537]
[1756538155007,1.3741927,108340.0,108330.0,0.41467537]
[1756538155207,2.08550344,108340.0,108330.0,0.41467537]
[1756538156001,2.08550344,108340.0,108330.0,0.05902]
[1756538156508,2.08550344,108340.0,108330.0,0.41467537]
[1756538157103,2.08550344,108340.0,108320.0,1.19973537]
[1756538157104,0.0211,108330.0,108320.0,1.23610537]
[1756538157303,0.37675537,108330.0,108320.0,1.59176074]
[1756538157509,0.39948807,108330.0,108320.0,1.59176074]
[1756538158509,0.42300807,108330.0,108320.0,0.77033074]
[1756538159307,0.42300807,108330.0,108320.0,0.05902]
[1756538159506,0.42300807,108330.0,108320.0,0.41467537]
[1756538159807,0.41820807,108330.0,108320.0,0.41467537]
[1756538160108,0.0625527,108330.0,108320.0,0.41467537]
[1756538160309,0.41820807,108330.0,108320.0,0.41467537]
[1756538161009,0.41820807,108330.0,108320.0,0.77033074]
[1756538161211,0.41826805,108330.0,108320.0,0.77033074]
[1756538163708,0.02279268,108330.0,108320.0,1.02033074]
[1756538163912,0.02279268,108330.0,108320.0,1.73678611]
[1756538164114,0.51822983,108360.0,108350.0,0.05924]
[1756538164309,1.36218983,108360.0,108350.0,0.41489537]
[1756538164510,1.7178452,108360.0,108350.0,0.41489537]
[1756538164713,1.36218983,108360.0,108350.0,0.41489537]
[1756538164909,1.7178452,108360.0,108350.0,0.41489537]
[1756538165412,0.8748852,108360.0,108350.0,0.41489537]
[1756538165614,1.7188052,108360.0,108350.0,0.41489537]
[1756538165803,1.36314983,108360.0,108350.0,0.41489537]
[1756538166007,1.7178052,108360.0,108350.0,0.41489537]
[1756538166610,1.36314983,108360.0,108350.0,0.41489537]
[1756538166814,1.7188052,108360.0,108350.0,0.41489537]
[1756538167414,1.36314983,108360.0,108350.0,0.41469339]
[1756538168212,1.36214983,108360.0,108350.0,0.41469339]
[1756538168515,1.00134983,108360.0,108350.0,0.41469339]
[1756538169112,1.00134983,108360.0,108350.0,0.77549339]
[1756538171516,1.00134983,108360.0,108350.0,0.42004]
[1756538171717,1.00134983,108360.0,108350.0,0.77549339]
[1756538175118,1.45680322,108360.0,108350.0,0.05924]
[1756538175619,1.81760322,108360.0,108350.0,0.05924]
[1756538176019,1.84021082,108360.0,108350.0,0.05924]
[1756538176319,1.48475743,108360.0,108350.0,0.05924]
[1756538177617,1.12395743,108360.0,108350.0,0.05924]
[1756538178019,1.48475743,108360.0,108350.0,0.05924]
[1756538179322,1.84021082,108360.0,108350.0,0.05924]
[1756538179920,1.47941082,108360.0,108350.0,0.05924]
[1756538181430,1.12395743,108360.0,108350.0,0.05924]
[1756538182623,1.12395743,108360.0,108350.0,0.41469339]
[1756538182926,1.12395778,108360.0,108350.0,0.41469339]
[1756538183425,1.12395778,108360.0,108350.0,0.05924]
[1756538184023,1.47941117,108360.0,108350.0,0.02428]
[1756538184226,0.0566,108350.0,108340.0,0.38508]
[1756538184422,0.53466134,108350.0,108340.0,0.02428]
[1756538185324,0.50089134,108350.0,108330.0,1.25784691]
[1756538185523,0.51205339,108340.0,108330.0,0.04276691]
[1756538185728,1.37826134,108340.0,108330.0,0.07772691]
[1756538186229,1.37826134,108340.0,108330.0,0.7939803]
[1756538186428,0.96620795,108340.0,108330.0,0.43852691]
[1756538186623,0.96620795,108340.0,108330.0,0.44052691]
[1756538187023,0.96620795,108340.0,108330.0,0.7959803]
[1756538187531,0.96620795,108340.0,108330.0,0.7969803]
[1756538188032,0.96620795,108340.0,108330.0,0.44152691]
[1756538188232,0.96620795,108340.0,108330.0,0.7969803]
[1756538190735,0.86620795,108340.0,108330.0,0.7969803]
[1756538192326,1.22166134,108340.0,108330.0,0.06224]
[1756538192524,1.58246134,108340.0,108330.0,0.02728]
[1756538192724,1.58246134,108340.0,108330.0,0.06071]
[1756538194132,1.68246134,108340.0,108330.0,0.06071]
[1756538194330,1.32166134,108340.0,108330.0,0.06071]
[1756538195022,1.68246134,108340.0,108330.0,0.06071]
[1756538195526,1.68246134,108340.0,108330.0,0.05871]
[1756538195733,1.68246134,108340.0,108330.0,0.05771]
[1756538196034,1.32166134,108340.0,108330.0,0.05771]
[1756538196233,1.68246134,108340.0,108330.0,0.05771]
[1756538196827,1.93246134,108340.0,108310.0,0.35971]
[1756538197035,0.45545339,108320.0,108310.0,0.05662]
[1756538197332,1.32158134,108320.0,108310.0,0.05662]
[1756538197532,0.96612795,108320.0,108310.0,0.05662]
[1756538197732,0.96612795,108320.0,108310.0,0.41207339]
[1756538198034,0.96612795,108320.0,108310.0,0.41407339]
[1756538198330,1.22692795,108320.0,108310.0,0.05862]
[1756538198532,1.22692795,108320.0,108310.0,0.05662]
[1756538198729,0.86612795,108320.0,108310.0,0.05662]
[1756538198931,0.86612795,108320.0,108310.0,0.05862]
[1756538199132,0.96612795,108320.0,108310.0,0.41407339]
[1756538199535,0.96612795,108320.0,108310.0,0.05662]
[1756538200036,1.32158134,108320.0,108310.0,0.05662]
[1756538203935,1.32158134,108320.0,108310.0,0.02319]
[1756538204141,1.32158134,108320.0,108300.0,1.61222074]
[1756538204639,1.32158134,108320.0,108300.0,1.25676735]
[1756538204836,0.1,108310.0,108300.0,0.43643735]
[1756538205041,0.12260795,108310.0,108300.0,0.77287339]
[1756538205541,0.12260795,108310.0,108300.0,0.77387339]
[1756538205729,0.12260795,108310.0,108300.0,0.77587339]
[1756538207541,0.12260795,108310.0,108300.0,0.42042]
[1756538207742,0.12260795,108310.0,108300.0,0.77587339]
[1756538209645,0.12260795,108310.0,108300.0,0.42042]
[1756538209944,0.12260795,108310.0,108300.0,0.77587339]
[1756538212045,0.02260795,108310.0,108300.0,0.77587339]
[1756538212645,0.73905629,108320.0,108310.0,0.05662]
[1756538212846,1.3271629,108320.0,108310.0,0.41207339]
[1756538215046,0.4836029,108320.0,108310.0,0.41207339]
[1756538215247,1.3271629,108320.0,108310.0,0.41207339]
[1756538216247,1.68261629,108320.0,108310.0,0.41207339]
[1756538216749,1.32181629,108320.0,108310.0,0.41207339]
[1756538217047,0.47825629,108320.0,108310.0,0.41207339]
[1756538217246,1.32181629,108320.0,108310.0,0.41207339]
[1756538217748,1.32181629,108320.0,108310.0,0.05662]
[1756538219349,1.32181629,108320.0,108310.0,0.4123503]
[1756538219350,1.3220932,108320.0,108310.0,0.4123503]
[1756538220040,0.9663629,108320.0,108310.0,0.4123503]
[1756538220246,1.3220932,108320.0,108310.0,0.4123503]
[1756538220448,1.3220932,108320.0,108310.0,0.05662]
[1756538220644,1.6778235,108320.0,108310.0,0.4123503]
[1756538220842,1.3271629,108320.0,108310.0,0.4123503]
[1756538221046,2.0386235,108320.0,108310.0,0.4123503]
[1756538221550,1.3271629,108320.0,108310.0,0.4123503]
[1756538221847,1.6828932,108320.0,108310.0,0.4123503]
[1756538222150,1.3271629,108320.0,108310.0,0.4123503]
[1756538222355,1.6828932,108320.0,108310.0,0.4123503]
[1756538224350,2.0386235,108320.0,108310.0,0.4123503]
[1756538224649,1.6828932,108320.0,108310.0,0.4123503]
[1756538227651,1.49685153,108320.0,108310.0,0.4123503]
[1756538227849,1.59685153,108320.0,108310.0,0.4123503]
[1756538228653,1.59685153,108320.0,108310.0,0.05662]
[1756538228859,1.59685153,108320.0,108310.0,0.4123503]
[1756538229049,1.95258183,108320.0,108310.0,0.4123503]
[1756538229254,1.59685153,108320.0,108310.0,0.4123503]
[1756538230855,1.23605153,108320.0,108310.0,0.4123503]
[1756538234452,0.88032123,108320.0,108310.0,0.4123503]
[1756538234650,0.3557303,108330.0,108320.0,0.058]
[1756538234855,1.35459336,108330.0,108320.0,0.7694606]
[1756538235155,1.35459336,108330.0,108320.0,0.4137303]
[1756538235854,0.99986306,108330.0,108320.0,0.4137303]
[1756538236054,1.35559336,108330.0,108320.0,0.4137303]
[1756538237157,1.35659336,108330.0,108320.0,0.4137303]
[1756538238462,1.00086306,108330.0,108320.0,0.4137303]
[1756538238659,1.35659336,108330.0,108320.0,0.4137303]
[1756538239561,0.52986452,108330.0,108320.0,0.4137303]
[1756538239762,1.15648297,108330.0,108320.0,0.4137303]
[1756538239962,1.32680146,108330.0,108320.0,0.4137303]
[1756538240465,1.32688146,108330.0,108320.0,0.4137303]
[1756538240865,0.47816146,108330.0,108320.0,0.4137303]
[1756538241059,1.32684146,108330.0,108320.0,0.4137303]
[1756538241763,0.47816146,108330.0,108320.0,0.4137303]
[1756538241964,1.32676146,108330.0,108320.0,0.4137303]
[1756538246875,0.97103116,108330.0,108320.0,0.4137303]
[1756538247078,1.32676146,108330.0,108320.0,0.4137303]
[1756538247384,1.32675459,108330.0,108320.0,0.4137303]
[1756538249872,0.97102429,108330.0,108320.0,0.7694606]
[1756538250068,1.32675459,108330.0,108320.0,0.7694606]
[1756538250279,0.47815459,108330.0,108320.0,0.7694606]
[1756538250479,1.32583459,108330.0,108320.0,0.4137303]
[1756538250778,0.47815459,108330.0,108320.0,0.4137303]
[1756538250978,1.32583459,108330.0,108320.0,0.4137303]
[1756538251182,1.32571459,108330.0,108320.0,0.4137303]
[1756538251781,1.68651459,108330.0,108320.0,0.3557303]
[1756538252282,0.83895459,108330.0,108320.0,0.3557303]
[1756538252479,1.68635459,108330.0,108310.0,0.7764003]
[1756538252781,0.4557303,108320.0,108310.0,0.7764003]
[1756538253080,1.32551459,108320.0,108310.0,0.7764003]
[1756538254282,0.47815459,108320.0,108310.0,0.7774003]
[1756538254483,0.96974429,108320.0,108310.0,0.7774003]
[1756538254679,1.32547459,108320.0,108310.0,0.7774003]
[1756538254985,1.32531459,108320.0,108310.0,0.7774003]
[1756538255283,0.47815459,108320.0,108310.0,0.7774003]
[1756538255485,1.32527459,108320.0,108310.0,0.7774003]
[1756538256083,0.96954429,108320.0,108310.0,0.7774003]
[1756538257383,1.32527459,108320.0,108310.0,0.7774003]
[1756538258184,0.96954429,108320.0,108310.0,0.7774003]
[1756538258382,1.32527459,108320.0,108310.0,0.7774003]
[1756538259385,0.47815459,108320.0,108310.0,0.7774003]
[1756538259587,1.32631459,108320.0,108310.0,0.7774003]
[1756538261086,0.97058429,108320.0,108310.0,0.7774003]
[1756538261385,1.32631459,108320.0,108310.0,0.7774003]
[1756538261586,0.97058429,108320.0,108310.0,0.7774003]
[1756538261790,1.32631459,108320.0,108310.0,0.42167]
[1756538261986,1.32631459,108320.0,108310.0,0.7774003]
[1756538266694,0.97058429,108320.0,108310.0,0.7774003]
[1756538266894,1.32631459,108320.0,108310.0,0.7774003]
[1756538269292,1.32631459,108320.0,108310.0,0.42167]
[1756538269485,1.32631459,108320.0,108310.0,0.7774003]
[1756538270392,1.32631459,108320.0,108310.0,0.42167]
[1756538270593,1.32631459,108320.0,108310.0,0.7774003]
[1756538270889,1.68204489,108320.0,108310.0,0.3813203]
[1756538271082,1.32631459,108320.0,108310.0,0.3813203]
[1756538271490,1.32631459,108320.0,108310.0,0.4166003]
[1756538272491,1.68204489,108320.0,108310.0,0.02559]
[1756538272695,2.29284489,108320.0,108300.0,0.02459]
[1756538272897,0.5004803,108310.0,108300.0,0.3803203]
[1756538273091,0.52290459,108310.0,108300.0,0.02459]
[1756538273292,0.52290459,108310.0,108300.0,0.3803203]
[1756538274794,0.52290459,108310.0,108300.0,0.4176003]
[1756538274990,0.52290459,108310.0,108300.0,0.4186003]
[1756538275397,0.16717429,108310.0,108300.0,0.4186003]
[1756538275597,0.52290459,108310.0,108300.0,0.4176003]
[1756538275798,0.52290459,108310.0,108300.0,0.4186003]
[1756538279000,0.52290459,108310.0,108300.0,0.06287]
[1756538279298,0.52290459,108310.0,108300.0,0.4186003]
[1756538281605,0.16717429,108310.0,108300.0,0.4186003]
[1756538281800,0.16717429,108310.0,108300.0,1.1351306]
[1756538282104,0.52290459,108310.0,108300.0,1.1351306]
[1756538286607,0.52290459,108310.0,108300.0,0.7794003]
[1756538289808,1.36982459,108310.0,108300.0,0.7794003]
[1756538293505,1.01409429,108310.0,108300.0,0.7794003]
[1756538293704,1.32479459,108310.0,108300.0,1.1351306]
[1756538293909,1.36830459,108310.0,108300.0,1.1351306]
[1756538297415,1.36830459,108310.0,108300.0,0.7794003]
[1756538298313,1.36830459,108310.0,108300.0,1.1351306]
[1756538299816,0.04627429,108310.0,108300.0,1.1351306]
[1756538300018,1.24808459,108310.0,108300.0,1.1351306]
[1756538301516,1.26774459,108310.0,108300.0,1.1351306]
[1756538301916,0.42166459,108310.0,108300.0,1.1351306]
[1756538302123,0.86538,108310.0,108300.0,1.1351306]
[1756538302417,1.2211103,108310.0,108300.0,1.1351306]
[1756538303517,1.2211103,108310.0,108300.0,0.42367]
[1756538303717,1.2211103,108310.0,108300.0,1.1351306]
[1756538304719,0.3753903,108310.0,108300.0,1.1351306]
[1756538304910,1.2209503,108310.0,108300.0,0.42367]
[1756538305217,1.2209503,108310.0,108300.0,1.1351306]
[1756538305619,1.2209503,108310.0,108300.0,0.42367]
[1756538305810,1.2209503,108310.0,108300.0,1.1351306]
[1756538306119,1.2212303,108310.0,108300.0,1.1351306]
[1756538306416,0.8655,108310.0,108300.0,1.1351306]
[1756538306626,1.2212303,108310.0,108300.0,1.1351306]
[1756538309320,1.2212303,108310.0,108300.0,0.42367]
[1756538309518,1.2212303,108310.0,108300.0,1.1351306]
[1756538309721,0.8655,108310.0,108300.0,1.1351306]
[1756538310021,1.3212303,108310.0,108300.0,0.38839]
[1756538310220,1.3212303,108310.0,108300.0,0.7441203]
[1756538310421,1.3212303,108310.0,108300.0,0.42507]
[1756538310616,1.3212303,108310.0,108300.0,0.7808003]
[1756538311818,0.9655,108310.0,108300.0,0.7808003]
[1756538312021,1.3212303,108310.0,108300.0,0.7808003]
[1756538312414,1.3212303,108310.0,108300.0,0.79966144]
[1756538316026,0.9655,108310.0,108300.0,0.44393114]
[1756538316225,1.3212303,108310.0,108300.0,0.79966144]
[1756538316925,1.3212303,108310.0,108300.0,1.15539174]
[1756538317227,0.84776,108310.0,108300.0,1.15539174]
[1756538318925,0.94776,108310.0,108300.0,1.15539174]
[1756538319924,1.3033703,108310.0,108300.0,1.15539174]
[1756538320325,0.84764,108310.0,108300.0,1.15539174]
[1756538320524,1.2033703,108310.0,108300.0,1.15539174]
[1756538320725,1.2033703,108310.0,108300.0,0.44393114]
[1756538320927,1.2033703,108310.0,108300.0,1.15539174]
[1756538321227,0.84764,108310.0,108300.0,1.15539174]
[1756538323237,1.2033703,108310.0,108300.0,1.15539174]
[1756538324139,0.3557303,108310.0,108300.0,1.15539174]
[1756538324335,0.84732,108310.0,108300.0,1.15539174]
[1756538324835,0.84732,108310.0,108300.0,0.44393114]
[1756538325132,0.84732,108310.0,108300.0,1.15539174]
[1756538325737,0.3557303,108320.0,108300.0,1.11871174]
[1756538325937,0.47868289,108320.0,108310.0,0.4176303]
[1756538326235,1.32548289,108320.0,108310.0,0.4176303]
[1756538327638,1.32548289,108320.0,108310.0,0.0619]
[1756538327839,1.68121319,108320.0,108310.0,0.4176303]
[1756538328841,1.68121319,108320.0,108310.0,0.0619]
[1756538329141,1.68121319,108320.0,108310.0,0.3805103]
[1756538329341,0.96975259,108320.0,108310.0,0.4176303]
[1756538329538,1.68121319,108320.0,108310.0,0.4176303]
[1756538330441,0.96975259,108320.0,108310.0,0.4176303]
[1756538330641,1.68121319,108320.0,108310.0,0.4176303]
[1756538331542,1.68121319,108320.0,108310.0,0.0619]
[1756538331840,1.68121319,108320.0,108310.0,0.4176303]
[1756538334347,1.68121319,108320.0,108310.0,0.0619]
[1756538334538,1.68121319,108320.0,108310.0,0.02478]
[1756538334734,1.68121319,108320.0,108310.0,0.3557303]
[1756538335044,1.68121319,108320.0,108310.0,0.4176303]
[1756538339650,0.83441319,108320.0,108310.0,0.4176303]
[1756538340051,1.68057319,108320.0,108310.0,0.4176303]
[1756538340243,1.68053319,108320.0,108310.0,0.0619]
[1756538340439,1.68053319,108320.0,108310.0,0.4176303]
[1756538341053,0.83441319,108320.0,108310.0,0.4176303]
[1756538341353,1.68041319,108320.0,108310.0,0.4176303]
[1756538341553,1.68041319,108320.0,108310.0,0.02478]
[1756538341753,1.68041319,108320.0,108310.0,0.3805103]
[1756538342554,0.96895259,108320.0,108310.0,0.3805103]
[1756538342748,0.12295259,108320.0,108310.0,0.4170203]
[1756538342955,1.32456289,108320.0,108310.0,0.4170203]
[1756538344657,1.68029319,108320.0,108310.0,0.4170203]
[1756538345566,1.68029319,108320.0,108310.0,0.06129]
[1756538345763,1.68029319,108320.0,108310.0,0.4170203]
[1756538346557,1.68029319,108320.0,108310.0,0.06129]
[1756538346861,1.68029319,108320.0,108310.0,0.4170203]
[1756538347056,1.32456289,108320.0,108310.0,0.4170203]
[1756538349164,1.68029319,108320.0,108310.0,0.4170203]
[1756538349667,1.68029319,108320.0,108310.0,0.06129]
[1756538349959,1.68029319,108320.0,108310.0,0.4170203]
[1756538350162,1.50976166,108320.0,108310.0,0.4170203]
[1756538350762,1.15403136,108320.0,108310.0,0.4170203]
[1756538353468,0.79830106,108320.0,108310.0,0.4170203]
[1756538353667,1.15403136,108320.0,108310.0,0.06129]
[1756538353868,1.15403136,108320.0,108310.0,0.4170203]
[1756538354064,0.79830106,108320.0,108310.0,0.4170203]
[1756538354273,1.15403136,108320.0,108310.0,0.4170203]
[1756538362175,1.17692253,108320.0,108310.0,0.4170203]
[1756538362675,1.22326147,108320.0,108310.0,0.4170203]
[1756538364176,1.22322147,108320.0,108310.0,0.4170203]
[1756538365075,1.57895177,108320.0,108310.0,0.06129]
[1756538365376,1.57895177,108320.0,108310.0,0.4170203]
[1756538366065,1.57895177,108320.0,108310.0,0.06129]
[1756538366376,2.03975177,108320.0,108300.0,0.43391144]
[1756538366677,0.3557303,108310.0,108300.0,0.43391144]
[1756538366873,0.37862147,108310.0,108300.0,0.43391144]
[1756538367673,0.37862147,108310.0,108300.0,0.43491144]
[1756538368877,0.37862147,108310.0,108300.0,0.43691144]
[1756538369488,0.37862147,108310.0,108300.0,0.4180503]
[1756538369776,0.02289117,108310.0,108300.0,0.4180503]